Cogmind - Beta 14 @@@ ROGUE MODE // 2024.12.07 @ 16:24:43 Player: lavinia Result: Destroyed by L-31 Rogue with Katana Performance ------------- Evolutions (0) 0 Regions Visited (4) 800 Robots Destroyed (16) 80 Value Destroyed (303) 303 Prototype IDs (26) 520 Alien Tech Used (0) 0 Bonus (300) 300 TOTAL SCORE: 2003 Bonus ------- Aligned with FarCom 300 Cogmind --------- Core Integrity 0/250 Matter 300/300 Energy 99/100 System Corruption 3% Temperature Cool (0) Movement Rolling (110) Ox2 Location -9/Mines Parts ------- > --- POWER (1) -------- (None) > --- PROPULSION (2) --- Wheel > --- UTILITY (2) ------ Large Storage Unit Structural Scanner > --- WEAPON (2) ------- (None) > --- INVENTORY (15) --- Ion Engine Wheel Huge Storage Unit Medium Matter Pod (100) Tractor Beam Tractor Beam Medium Laser Latent Energy Streamer Assault Rifle Light Assault Rifle Grenade Launcher Datajack Datajack Peak State ------------ > --- POWER ------------ Light Nuclear Core > --- PROPULSION ------- Wheel Compact Wheel > --- UTILITY ---------- Large Storage Unit Structural Scanner > --- WEAPON ----------- Assault Rifle Ripper > --- INVENTORY -------- Ion Engine Wheel Huge Storage Unit Medium Matter Pod Tractor Beam Tractor Beam Medium Laser Latent Energy Streamer Assault Rifle Light Assault Rifle Grenade Launcher Datajack Datajack [Rating: 14] Favorites ----------- Power Light Nuclear Core Engine Ion Engine Power Core Light Nuclear Core Propulsion Compact Wheel Wheel Compact Wheel Utility Structural Scanner Device Structural Scanner Storage Large Storage Unit Weapon Assault Rifle Energy Gun Medium Laser Ballistic Gun Assault Rifle Launcher Grenade Launcher Slashing Weapon Ripper Special Melee Weapon Datajack Build | -11 -10 -10 -10 -9 ------- Run | Yrd Mat Min Exi Min Slots Evolved . | . . . . . Power . | . . . . . Propulsion . | . . . . . Utility . | . . . . . Weapon . | . . . . . Parts Attached 15 | 5 4 6 . . Power 2 | . 1 1 . . Engine 1 | . 1 . . . Core 1 | . . 1 . . Reactor . | . . . . . Propulsion 3 | 2 . 1 . . Treads . | . . . . . Leg . | . . . . . Wheel 3 | 2 . 1 . . Hover . | . . . . . Flight . | . . . . . Utility 4 | 1 3 . . . Device 1 | . 1 . . . Storage 3 | 1 2 . . . Processor . | . . . . . Hackware . | . . . . . Protection . | . . . . . Artifact . | . . . . . Weapon 6 | 2 . 4 . . Energy Gun 1 | 1 . . . . Energy Cannon . | . . . . . Ballistic Gun 2 | 1 . 1 . . Ballistic Cannon . | . . . . . Launcher 1 | . . 1 . . Special Weapon . | . . . . . Impact Weapon . | . . . . . Slashing Weapon 1 | . . 1 . . Piercing Weapon . | . . . . . Special Melee Weapon 1 | . . 1 . . Unidentified Prototypes . | . . . . . Parts Lost 4 | . . 1 . 3 Power 1 | . . . . 1 Propulsion 2 | . . 1 . 1 Utility . | . . . . . Weapon 1 | . . . . 1 Highest Loss Streak 3 | . . 1 . 3 To Critical Strikes . | . . . . . Average Slot Usage (%) 97 | . 95 97 100 100 Engine 5 | . 12 5 . . Core 8 | . . 9 14 14 Wheel 27 | . 28 25 28 28 Device 13 | . 11 14 14 14 Storage 14 | . 14 14 14 14 Energy Gun 4 | . 14 2 . . Ballistic Gun 13 | . 14 13 14 14 Slashing Weapon 8 | . . 10 14 14 Peak Build Rating 14 | 5 7 13 14 14 Average Rating 10 | 3 6 11 13 11 On Entrance 7 | . 5 7 13 14 Naked Turns . | . . . . . Heaviest Build 31 | 9 30 31 31 31 Greatest Support 26 | 26 26 26 26 26 Greatest Overweight (x) 2 | 1 1 1 1 2 Average Overweight (x) . | . . 1 1 1 Largest Inventory Capacity 15 | 8 15 15 15 15 Average Capacity 14 | 7 13 15 15 15 Most Carried 13 | 1 8 12 13 13 Average Carried 9 | . 5 10 12 13 Final Capacity 15 | 8 15 15 15 15 Final Carried 13 | 1 8 12 13 13 Class Distribution -------------------- 100% | Mutant Dominant Class ---------------- Mutant | -10/Materials Mutant | -10/Mines Mutant | -10/Exiles Mutant | -9/Mines Resources | -11 -10 -10 -10 -9 ----------- Run | Yrd Mat Min Exi Min Matter Collected 425 | 195 48 182 . . Remotely . | . . . . . Salvage Created 414 | . 78 336 . . Parts 32 | . 4 28 . . Haulers Intercepted . | . . . . . Recyclers Shooed . | . . . . . Parts Field Recycled . | . . . . . Retrieved Matter . | . . . . . Parts Self-Destructed . | . . . . . Prevented . | . . . . . Kills | -11 -10 -10 -10 -9 ------- Run | Yrd Mat Min Exi Min Combat Hostiles Destroyed 10 | . 2 8 . . Melee 5 | . . 5 . . Guns 2 | . 2 . . . AOE 3 | . . 3 . . Classes Destroyed 5 | . 1 4 . . Worker 3 | . . 3 . . Builder 1 | . . 1 . . Tunneler 2 | . . 2 . . Swarmer 3 | . . 3 . . Grunt 7 | . 2 5 . . Best Kill Streak 9 | . 2 9 . . Combat Bots Only 4 | . 2 4 . . Max Kills in Single Turn 3 | . 1 3 . . Gunslinging . | . . . . . Exploded 2 | . . 2 . . Melee 1 | . . 1 . . Uniques/NPCs Destroyed . | . . . . . Combat | -11 -10 -10 -10 -9 -------- Run | Yrd Mat Min Exi Min Hostile Shots Fired 65 | . 10 40 . 15 Missed 10 | . . 9 . 1 Damage Taken 711 | . 112 349 . 250 Core 272 | . 44 127 . 101 Absorbed by Shields . | . . . . . Core Remaining (%) 100 | 100 . . . . Volleys Fired 19 | . 6 13 . . Largest 2 | . 2 1 . . Hottest 70 | . 70 30 . . Shots Fired 25 | . 12 13 . . Gun 23 | . 12 11 . . Cannon . | . . . . . Launcher 2 | . . 2 . . Special . | . . . . . Kinetic 17 | . 6 11 . . Thermal 6 | . 6 . . . Explosive 2 | . . 2 . . Electromagnetic . | . . . . . Robot Hit Streak 4 | . 3 4 . . Robot Miss Streak 3 | . 2 3 . . Penetration Max . | . . . . . Secondary Targets . | . . . . . Shots Hit Robots 33 | . 7 26 . . Core Hits 18 | . 4 14 . . Critical Kills . | . . . . . Critical Parts Destroyed . | . . . . . Critical Strikes 1 | . 1 . . . Burn 1 | . 1 . . . Melee Attacks 25 | . . 22 . 3 Impact . | . . . . . Slashing 19 | . . 16 . 3 Piercing . | . . . . . Sneak Attacks 11 | . . 11 . . Combat Hostiles 1 | . . 1 . . Follow-up Attacks . | . . . . . Damage Inflicted 1131 | . 86 1041 . 4 Guns 158 | . 86 72 . . Cannons . | . . . . . Explosions 208 | . . 208 . . Melee 761 | . . 761 . . Ramming 4 | . . . . 4 Kinetic 108 | . 36 72 . . Thermal 50 | . 50 . . . Explosive 208 | . . 208 . . Electromagnetic . | . . . . . Impact . | . . . . . Slashing 761 | . . 761 . . Piercing . | . . . . . Highest Corruption 3 | . 3 3 3 3 Average Corruption 2 | . 2 3 3 3 Corruption Purged . | . . . . . Corruption Blocked . | . . . . . Effects 16 | . 1 7 7 1 Message Errors 5 | . . 3 2 . Matter Fused 2 | . . 2 . . Heat Flow Errors 2 | . . 1 1 . Energy Discharges 2 | . 1 1 . . Parts Rejected 1 | . . . . 1 Data Loss (minor) 1 | . . . 1 . Data Loss (major) 2 | . . . 2 . Alerts 1 | . . . 1 . Overload Shots . | . . . . . Overflow Damage 160 | . . 160 . . Projectiles . | . . . . . Explosions 36 | . . 36 . . Melee 124 | . . 124 . . Knockbacks . | . . . . . Impact . | . . . . . Kinetic . | . . . . . Secondary . | . . . . . Self-Inflicted Damage 2 | . . . . 2 Shots . | . . . . . Rammed 1 | . . . . 1 Targets Rammed 1 | . . . . 1 Kicked . | . . . . . Crushed . | . . . . . Highest Temperature 223 | . 96 223 149 . Average Temperature 81 | . 53 118 77 . Received Heat Transfer 333 | . 60 213 . 60 Siege Activations . | . . . . . Robots Corrupted . | . . . . . Combat Hostiles . | . . . . . Parts Fried . | . . . . . Impact Corruptions . | . . . . . Robots Melted . | . . . . . Combat Hostiles . | . . . . . Parts Melted . | . . . . . Heat Transferred 222 | . 222 . . . Parts Sabotaged . | . . . . . Parts Stolen . | . . . . . Parts Stripped . | . . . . . Power Chain Reactions . | . . . . . Alert | -11 -10 -10 -10 -9 ------- Run | Yrd Mat Min Exi Min Peak Influence 242 | . 145 242 . . Initial 4 | . . 4 . . Average 89 | . 41 142 . . Maximum Alert Level 1 | . . 1 . . Low Security (%) 71 | 100 100 42 . 100 Level 1 28 | . . 57 . . Level 2 . | . . . . . Level 3 . | . . . . . Level 4 . | . . . . . Level 5 . | . . . . . High Security . | . . . . . Max Security . | . . . . . Squads Dispatched 5 | . 4 1 . . Investigation 4 | . 3 1 . . Extermination . | . . . . . Reinforcement 1 | . 1 . . . Assault . | . . . . . Garrison . | . . . . . Intercept . | . . . . . Searches Triggered . | . . . . . Construction Impeded . | . . . . . Haulers Reinforced . | . . . . . Active Scanning Responses . | . . . . . Cargo Convoy Interrupts . | . . . . . Stealth | -11 -10 -10 -10 -9 --------- Run | Yrd Mat Min Exi Min Distress Signals . | . . . . . Communications Jammed . | . . . . . Distress Signals . | . . . . . Times Spotted 20 | . 8 9 . 3 Peak Tracking Total 5 | . 4 5 . 3 Tactical Retreats 2 | . 1 1 . . Traps | -11 -10 -10 -10 -9 ------- Run | Yrd Mat Min Exi Min Traps Triggered 4 | . 4 . . . Indirectly . | . . . . . Trap Hack Attempts . | . . . . . Triggered . | . . . . . Disarmed . | . . . . . Reprogrammed . | . . . . . Reused . | . . . . . Traps Extracted . | . . . . . Installed . | . . . . . Triggered . | . . . . . Machines | -11 -10 -10 -10 -9 ---------- Run | Yrd Mat Min Exi Min Machines Disabled . | . . . . . Max in Single Turn . | . . . . . Machines Repaired . | . . . . . Machines Dismantled . | . . . . . Machines Sabotaged . | . . . . . Overloaded Fab Kills . | . . . . . Hacking | -11 -10 -10 -10 -9 --------- Run | Yrd Mat Min Exi Min Machines Accessed 7 | . 4 1 2 . Terminals 5 | . 4 1 . . Fabricators . | . . . . . Repair Stations . | . . . . . Recycling Units . | . . . . . Scanalyzers . | . . . . . Garrison Access . | . . . . . Total Hacks 31 | . 20 3 8 . Successful 21 | . 11 2 8 . Failed 10 | . 9 1 . . Catastrophic 5 | . 5 . . . Database Lockouts . | . . . . . Manual 10 | . 8 1 1 . Terminals 23 | . 20 3 . . Fabricators . | . . . . . Repair Stations . | . . . . . Recycling Units . | . . . . . Scanalyzers . | . . . . . Garrison Access . | . . . . . Terminal Hacks 21 | . 11 2 8 . Record 12 | . 5 . 7 . Prototype ID Bank 2 | . 2 . . . Branch Access Points 1 | . 1 . . . Terminal Index 2 | . 1 1 . . Unreport Threat 1 | . 1 . . . Locate Traps 1 | . 1 . . . Zone Layout 1 | . . 1 . . Derelict Proto ID Bank 1 | . . . 1 . Fabricator Hacks . | . . . . . Repair Station Hacks . | . . . . . Recycling Unit Hacks . | . . . . . Scanalyzer . | . . . . . Garrison Access Hacks . | . . . . . Unauthorized Hacks . | . . . . . Terminals . | . . . . . Fabricators . | . . . . . Repair Stations . | . . . . . Recycling Units . | . . . . . Scanalyzers . | . . . . . Garrison Access . | . . . . . Data Cores Recovered . | . . . . . Used . | . . . . . Hacking Detections 5 | . 4 1 . . Full Trace Events 5 | . 4 1 . . Feedback Events . | . . . . . Feedback Blocked . | . . . . . Robot Schematics Acquired . | . . . . . Robots Built . | . . . . . Authchips . | . . . . . Time . | . . . . . Total Robot Build Rating . | . . . . . Part Schematics Acquired . | . . . . . Parts Built . | . . . . . Authchips . | . . . . . Time . | . . . . . Total Part Build Rating . | . . . . . Parts Repaired . | . . . . . Time . | . . . . . Parts Recycled . | . . . . . Recycled Matter . | . . . . . Retrieved Matter . | . . . . . Retrieved Components . | . . . . . Parts Scanalyzed . | . . . . . Part Schematics Acquired . | . . . . . Parts Damaged . | . . . . . Bothacking | -11 -10 -10 -10 -9 ------------ Run | Yrd Mat Min Exi Min Used RIF Installer . | . . . . . Robots Hacked 3 | . . 3 . . Non-combat 2 | . . 2 . . Combat 1 | . . 1 . . Robot Hacks Applied 5 | . . 5 . . parse_system 3 | . . 3 . . no_distress 2 | . . 2 . . Relay Couplers Released . | . . . . . Fabnet Peak Effective % . | . . . . . Robots Rewired . | . . . . . Allies Hacked . | . . . . . Hacks Repelled . | . . . . . Allies | -11 -10 -10 -10 -9 -------- Run | Yrd Mat Min Exi Min Total Allies . | . . . . . Largest Group . | . . . . . Highest-Rated Group . | . . . . . Highest-Rated Ally . | . . . . . Total Orders . | . . . . . Ally Attacks . | . . . . . Total Damage . | . . . . . Kills . | . . . . . Allies Corrupted . | . . . . . Allies Melted . | . . . . . Intel | -11 -10 -10 -10 -9 ------- Run | Yrd Mat Min Exi Min Robot Analysis Total . | . . . . . Derelict Logs Recovered 3 | . . 3 . . Drone Launches . | . . . . . Drone Recoveries . | . . . . . Exploration | -11 -10 -10 -10 -9 ------------- Run | Yrd Mat Min Exi Min Turns Passed 1278 | 45 353 415 455 10 Spaces Moved 1038 | 41 257 305 433 2 Core 4 | 4 . . . . Treads . | . . . . . Legs . | . . . . . Wheels 1034 | 37 257 305 433 2 Hover . | . . . . . Flight . | . . . . . Fastest Speed 50 | 50 90 105 105 105 Average Speed 103 | 88 100 105 105 107 Slowest Speed 115 | 100 105 115 105 110 Overloaded Moves . | . . . . . Propulsion Burnouts . | . . . . . Robots Hopped . | . . . . . Cave-ins Triggered . | . . . . . Exploration Rate (%) 39 | 4 41 59 90 3 Regions Visited 4 Branch Regions 3 Pre-discovered Areas 1 | . . 1 . . Known Exits Taken 1 | . 1 . . . Unknown Exits Taken 3 | 1 . 1 1 . Scrap Searched 1 | . . 1 . . Spaces Dug . | . . . . . Terrain Destroyed 7 | . . 7 . . Melee . | . . . . . Projectile . | . . . . . AOE 7 | . . 7 . . Terrain Rammed . | . . . . . Walls Destroyed . | . . . . . Machines Disabled . | . . . . . Actions | -11 -10 -10 -10 -9 --------- Run | Yrd Mat Min Exi Min Total 1177 | 47 337 354 433 6 Wait 69 | 1 62 6 . . Move 1034 | 40 256 304 432 2 Hop . | . . . . . Pick Up 12 | 1 7 3 1 . Fast Attach 10 | 5 4 1 . . Attach . | . . . . . Detach . | . . . . . Swap 5 | . . 5 . . Drop 2 | . 2 . . . Fire 19 | . 6 13 . . Melee 25 | . . 22 . 3 Ram 1 | . . . . 1 Kick . | . . . . . Crush . | . . . . . Escape Stasis . | . . . . . Rewire . | . . . . . Trap . | . . . . . Miscellaneous . | . . . . . Route ------- -11/Scrapyard -10/Materials (discovered 2 exits: *Min x2) -10/Mines (discovered 3 exits: [*Mat x2] / *Exi) -10/Exiles (discovered 2 exits: [*Min x2]) -9/Mines History --------- Turn | Location | Event 23 | -11/Scrapyard | Discovered new exit (range 16) 46 | -11/Scrapyard | Entered Materials 147 | -10/Materials | Discovered new exit (range 9) 301 | -10/Materials | Build established: Mutant 306 | -10/Materials | Discovered new exit (range 13) 334 | -10/Materials | Identified exit to Mines 399 | -10/Materials | Entered Mines 407 | -10/Mines | A weapon hastily lodged in a ceiling crevice suddenly fell to the ground 427 | -10/Mines | Learned location of Mines (-9) 430 | -10/Mines | Learned Materials interactive machine intel 521 | -10/Mines | Core integrity fell below 50% 628 | -10/Mines | Discovered new exit (range 10) 671 | -10/Mines | Deemed a non-threat by the Exiles lab entrance 700 | -10/Mines | Discovered new exit (range 14) 733 | -10/Mines | Learned Materials garrison access intel 750 | -10/Mines | Discovered new exit (range 16) 814 | -10/Mines | Entered Exiles 829 | -10/Exiles | Discovered new exit (range 15) 850 | -10/Exiles | Met 8R-AWN 869 | -10/Exiles | Met EX-HEX 909 | -10/Exiles | Met EX-BIN 925 | -10/Exiles | Aligned with FarCom system 926 | -10/Exiles | Given EX-Vault access code 951 | -10/Exiles | Opened EX-Vault 957 | -10/Exiles | Found Latent Energy Streamer 997 | -10/Exiles | Warned to stay clear of 0b10 Research branches 1031 | -10/Exiles | Met EX-DEC 1101 | -10/Exiles | Visited The Gauntlet 1258 | -10/Exiles | Discovered new exit (range 14) 1269 | -10/Exiles | Left Exiles lab with Latent Energy Streamer 1269 | -10/Exiles | Entered Mines 1275 | -9/Mines | Core integrity fell below 20% 1277 | -9/Mines | Met a Derelict bent on vengeance 1279 | -9/Mines | Destroyed by L-31 Rogue with Katana Last Messages --------------- don't have any workstations ready for assignment just yet. We're probably going to have to pack up and move anyway, seeing as the Mines are expanding a bit too close for comfort. DK-RAY: Welcome to The Gauntlet! If a prototype's bugged this is where we stop it. Unless we don't. But that rarely happens, honest! System corrupted: Heat flow error (+167). System corrupted: IFF burst signal emitted. EXIT=FOUND LOCATION=UNKNOWN GOAL=ESCAPE Receiving FarCom transmissions... Assault Rifle destroyed. Com. Wheel destroyed. Lgt. Nuclear Core destroyed. System corrupted: Ripper rejected. Slammed into L-31 Rogue. Map ----- +----------------------------------------------------+ | | | | | | | | | | | | | | | | | | | | | | | | | | | | | | | | | | | | | | | | | ?????????????????????????????????????????????????? | | ?????????????????????????????????????????????????? | | ?????????????????????#######?????????????????????? | | ????????????????????#########????????????????????? | | ????????????????????### ###????????????????????? | | ????????????????????## @%###???????????????????? | | ????????????????????## lg###??????????????????? | | ????????????????????###g ##??????????????????? | | ????????????????????#### ###???????????????? | | ?????????????????????### ##???????????????? | | ??????????????????????## ##???????????????? | | ??????????????????????### ###???????????????? | | ??????????????????????######## ###???????????????? | | ???????????????????????####### ##????????????????? | | ?????????????????????????????? ##????????????????? | | ?????????????????????????????? ##????????????????? | | ??????????????????????????????????????s??????????? | | ??????????????????????????????????????s??????????? | | ?????????????????????????????????????????????????? | | ?????????????????????????????????????????????????? | | ?????????????????????????????????????????????????? | | ?????????????????????????????????????????????????? | | ?????????????????????????????????????????????????? | | ?????????????????????????????????????????????????? | | ?????????????????????????????????????????????????? | | ?????????????????????????????????????????????????? | | ?????????????????????????????????????????????????? | | ?????????????????????????????????????????????????? | | ?????????????????????????????????????????????????? | | ?????????????????????????????????????????????????? | +----------------------------------------------------+ Best States ------------- Heat Dissipation 25 Energy Generation 14 Energy Capacity 250 Matter Stores 300 Matter Capacity 450 Sight Range 16 Terrain Scan Density 10 Evasion (%) 44 Item Schematics ----------------- None Robot Schematics ------------------ None Fabricated ------------ Nothing Alien Tech Used ----------------- None Achievements -------------- None Challenges ------------ None Game ------ Seed BeamSubatomicLoader Manual? 0 Play Time 00:18:40 Cumulative 9.8 hours Start 2024.12.07 @ 16:05:36 End 2024.12.07 @ 16:24:43 Sessions 1 Manual Loads 0 Difficulty Rogue Special Mode None Game No. 16 Rogue 16 Adventurer 0 Explorer 0 Win Type - Total 0 Types 0/0/0/0/0/0/0/0/0 Lore% 8 Gallery% 9 Achievement% 12 Wizard Run 0 Options --------- Layout 1 ASCII 0 Keyboard 0 Movement Numpad Keybinds 0 Fullscreen 2 Font 24/Smallcaps Map View 50x35 Zoom Use 0% Tactical HUD 0 Map Filters NONE Filters NONE Steam 1 RUN: da917f45-1b87-4ab0-b20f-582b8922e17d